[Event "Hungarian Youth-ch I 2024"]
[Site "Szolnok"]
[Date "2024.04.05"]
[Round "7.26"]
[White "Beznicza, Mira"]
[Black "Szarvas, Nora"]
[Result "0-1"]
[ECO "C42"]
[WhiteElo "1801"]
[BlackElo "1955"]
[Annotator "RC"]
[PlyCount "114"]
[EventDate "2024.03.31"]
[EventType "swiss"]
[EventCountry "HUN"]
[SourceTitle "playchess.com"]
[Source "ChessBase"]
[SourceQuality "1"]
[TimeControl "5400+30"]

1. e4 {[%emt 0:00:05]} e5 {[%emt 0:01:50]} 2. Nf3 {[%emt 0:00:20]} Nf6 {[%emt 0:00:48]} 3. d3 {[%emt 0:00:43]} Nc6 {[%emt 0:01:34]} 4. g3 {[%emt 0:03:24]} Bc5 {[%emt 0:01:23]} 5. Bg2 {[%emt 0:00:43]} d6 {[%emt 0:01:08]} 6. O-O {[%emt 0:01:17]} Bg4 {[%emt 0:02:36]} 7. h3 {[%emt 0:02:33]} Bh5 {[%emt 0:01:05]} 8. c3 {[%emt 0:02:54]} Qd7 {[%emt 0:06:03]} 9. Nbd2 {[%emt 0:01:30]} h6 {[%emt 0:05:18]} 10. Qe1 {[%emt 0:04:23]} O-O-O {[%emt 0:05:55]} 11. b4 {[%emt 0:04:16]} Bb6 {[%emt 0:00:30]} 12. Nh4 {[%emt 0:04:44]} g5 {[%emt 0:02:24]} 13. Nf5 {[%emt 0:01:57]} Bg6 {[%emt 0:01:59]} 14. Ne3 {[%emt 0:04:03]} a6 {[%emt 0:11:06]} 15. a4 {[%emt 0:03:42]} Qe6 {[%emt 0:05:14]} 16. Ndc4 {[%emt 0:03:52]} Nd7 {[%emt 0:03:46]} 17. Nd5 {[%emt 0:04:00]} f5 {[%emt 0:02:19]} 18. Ncxb6+ {[%emt 0:03:16]} Nxb6 {[%emt 0:01:25]} 19. Nxb6+ {[%emt 0:00:52]} cxb6 {[%emt 0:00:06]} 20. Be3 {[%emt 0:01:38]} f4 {[%emt 0:02:28]} 21. Bxb6 {[%emt 0:02:59]} Rdf8 {[%emt 0:00:22]} 22. Qd1 {[%emt 0:09:30]} h5 {[%emt 0:01:44]} 23. b5 {[%emt 0:02:05]} Nb8 {[%emt 0:01:10]} 24. d4 {[%emt 0:11:37]} Nd7 {[%emt 0:03:34]} 25. d5 Qf7 26. Ba5 {[%emt 0:06:08]} f3 {[%emt 0:04:57]} 27. Bh1 {[%emt 0:00:50]} Bxe4 {[%emt 0:06:49]} 28. bxa6 bxa6 29. c4 {[%emt 0:02:05]} Nc5 {[%emt 0:06:12]} 30. Ra2 {[%emt 0:02:23]} Qb7 {[%emt 0:05:15]} 31. Qd2 {[%emt 0:01:33]} Nb3 {[%emt 0:02:10]} 32. Qc3 {[%emt 0:00:31]} Nxa5 {[%emt 0:01:26]} 33. Qxa5 {[%emt 0:00:13]} g4 {[%emt 0:01:37]} 34. Qc3 {[%emt 0:03:01]} Qc7 {[%emt 0:02:57]} 35. Rb2 {[%emt 0:01:26]} Bxd5 36. Qe3 {[%emt 0:01:24]} Bxc4 {[%emt 0:02:28]} 37. Rfb1 {[%emt 0:01:41]} Bd5 {[%emt 0:05:13]} 38. Rc1 {[%emt 0:06:49]} Bc4 {[%emt 0:00:28]} 39. Rcb1 {[%emt 0:00:50]} Rf7 {[%emt 0:02:43]} 40. Qe4 {[%emt 0:01:09]} d5 {[%emt 0:00:42]} 41. Rb8+ {[%emt 0:01:43]} Kd7 {[%emt 0:00:25]} 42. Qg6 {[%emt 0:00:09]} Rxb8 {[%emt 0:00:20]} 43. Qxf7+ {[%emt 0:00:09]} Kd6 {[%emt 0:00:13]} 44. Qg6+ {[%emt 0:01:15]} Kc5 {[%emt 0:00:14]} 45. Rc1 {[%emt 0:00:16]} Qa5 {[%emt 0:00:50]} 46. Qg5 {[%emt 0:00:37]} e4 {[%emt 0:00:54]} 47. Qe3+ {[%emt 0:00:16]} Kc6 {[%emt 0:00:18]} 48. Qh6+ {[%emt 0:00:32]} Kc5 {[%emt 0:01:28]} 49. Qe3+ {[%emt 0:00:19]} Kc6 {[%emt 0:00:20]} 50. Qh6+ {[%emt 0:01:00]} Kb7 {[%emt 0:00:28]} 51. Qd6 {[%emt 0:01:05]} Qb6 {[%emt 0:00:45]} 52. Qd7+ {[%emt 0:00:16]} Ka8 {[%emt 0:00:08]} 53. hxg4 {[%emt 0:00:58]} hxg4 {[%emt 0:00:27]} 54. Qxg4 {[%emt 0:01:18]} Qb2 {[%emt 0:00:57]} 55. Qf4 {[%emt 0:00:42]} Qb4 {[%emt 0:00:31]} 56. g4 {[%emt 0:00:32]} Rg8 {[%emt 0:00:23]} 57. g5 {[%emt 0:00:16]} Qe7 {[%emt 0:00:14]} 0-1

[Event "Hungarian Youth-ch I 2024"]
[Site "Szolnok"]
[Date "2024.04.05"]
[Round "7.27"]
[White "Karacsonyi, Luca"]
[Black "Bende, Eniko Tunde"]
[Result "1-0"]
[ECO "B22"]
[WhiteElo "1956"]
[BlackElo "1650"]
[Annotator "RC"]
[PlyCount "59"]
[EventDate "2024.03.31"]
[EventType "swiss"]
[EventCountry "HUN"]
[SourceTitle "playchess.com"]
[Source "ChessBase"]
[SourceQuality "1"]
[TimeControl "5400+30"]

1. e4 {[%emt 0:00:02]} c5 {[%emt 0:00:11]} 2. c3 {[%emt 0:00:04]} Nc6 {[%emt 0:00:19]} 3. d4 {[%emt 0:00:06]} d6 {[%emt 0:00:11]} 4. d5 {[%emt 0:01:27]} Ne5 {[%emt 0:00:10]} 5. f4 {[%emt 0:00:23]} Nd7 {[%emt 0:02:15]} 6. Nf3 {[%emt 0:00:53]} Nb6 {[%emt 0:02:32]} 7. c4 {[%emt 0:02:18]} Bg4 {[%emt 0:00:59]} 8. Nc3 {[%emt 0:01:35]} Nf6 {[%emt 0:02:25]} 9. h3 {[%emt 0:02:04]} Bxf3 {[%emt 0:00:31]} 10. Qxf3 {[%emt 0:00:18]} g6 {[%emt 0:00:34]} 11. Bd3 {[%emt 0:01:20]} Bg7 {[%emt 0:00:40]} 12. Bd2 {[%emt 0:01:00]} O-O {[%emt 0:00:37]} 13. g4 {[%emt 0:00:24]} Nfd7 {[%emt 0:00:39]} 14. h4 {[%emt 0:00:53]} Re8 {[%emt 0:02:57]} 15. h5 {[%emt 0:01:57]} e6 {[%emt 0:00:33]} 16. hxg6 {[%emt 0:01:56]} fxg6 {[%emt 0:00:13]} 17. O-O-O {[%emt 0:00:57]} exd5 {[%emt 0:00:54]} 18. exd5 {[%emt 0:00:57]} Nf6 {[%emt 0:01:07]} 19. f5 {[%emt 0:01:35]} Nbd7 {[%emt 0:04:30]} 20. g5 {[%emt 0:09:18]} Ne5 {[%emt 0:00:45]} 21. Qh3 {[%emt 0:00:31]} Nxd3+ {[%emt 0:00:21]} 22. Qxd3 {[%emt 0:00:06]} Nd7 {[%emt 0:09:03]} 23. f6 {[%emt 0:01:03]} Bf8 {[%emt 0:01:12]} 24. f7+ {[%emt 0:00:40]} Kxf7 {[%emt 0:04:59]} 25. Rxh7+ {[%emt 0:00:06]} Bg7 {[%emt 0:00:20]} 26. Rf1+ {[%emt 0:00:21]} Kg8 {[%emt 0:00:09]} 27. Qxg6 {[%emt 0:00:22]} Re7 {[%emt 0:00:48]} 28. Rfh1 {[%emt 0:00:11]} Kf8 {[%emt 0:06:19]} 29. Rh8+ {[%emt 0:00:07]} Bxh8 {[%emt 0:00:18]} 30. Rxh8# {[%emt 0:00:03]} 1-0

[Event "Hungarian Youth-ch I 2024"]
[Site "Szolnok"]
[Date "2024.04.05"]
[Round "8.6"]
[White "Kolimar, Kristof Pal"]
[Black "Csernyik, Mark"]
[Result "1/2-1/2"]
[ECO "E64"]
[WhiteElo "2282"]
[BlackElo "2016"]
[Annotator "RC"]
[PlyCount "83"]
[EventDate "2024.03.31"]
[EventType "swiss"]
[EventCountry "HUN"]
[SourceTitle "playchess.com"]
[Source "ChessBase"]
[SourceQuality "1"]
[TimeControl "5400+30"]

1. d4 {[%emt 0:00:07]} Nf6 {[%emt 0:00:13]} 2. c4 {[%emt 0:00:04]} g6 {[%emt 0:00:22]} 3. g3 {[%emt 0:00:04]} Bg7 {[%emt 0:00:10]} 4. Bg2 {[%emt 0:00:04]} O-O {[%emt 0:00:07]} 5. Nc3 {[%emt 0:00:04]} d6 {[%emt 0:00:04]} 6. Nf3 {[%emt 0:00:09]} c5 {[%emt 0:00:26]} 7. d5 {[%emt 0:00:04]} e6 {[%emt 0:00:48]} 8. O-O {[%emt 0:00:06]} Re8 {[%emt 0:01:43]} 9. Re1 {[%emt 0:01:59]} h6 {[%emt 0:02:52]} 10. Nd2 {[%emt 0:05:45]} exd5 {[%emt 0:05:38]} 11. cxd5 {[%emt 0:02:12]} Nbd7 {[%emt 0:00:40]} 12. a4 {[%emt 0:02:45]} g5 {[%emt 0:16:01]} 13. a5 {[%emt 0:09:25]} Nf8 {[%emt 0:02:46]} 14. Nc4 {[%emt 0:02:54]} Ng6 {[%emt 0:10:11]} 15. Nb5 {[%emt 0:07:57]} Bf8 {[%emt 0:02:18]} 16. e4 {[%emt 0:04:22]} a6 {[%emt 0:07:51]} 17. Nba3 {[%emt 0:03:48]} Nd7 {[%emt 0:04:54]} 18. Bd2 {[%emt 0:01:49]} Nge5 {[%emt 0:06:36]} 19. f4 {[%emt 0:09:38]} Nxc4 {[%emt 0:02:24]} 20. Nxc4 {[%emt 0:00:17]} gxf4 {[%emt 0:08:23]} 21. gxf4 {[%emt 0:01:52]} Qh4 {[%emt 0:01:01]} 22. Qf3 Rb8 {[%emt 0:02:47]} 23. Bc3 {[%emt 0:15:49]} b5 {[%emt 0:01:37]} 24. axb6 {[%emt 0:00:06]} Nxb6 {[%emt 0:00:07]} 25. Na5 {[%emt 0:00:18]} Bd7 {[%emt 0:02:22]} 26. e5 {[%emt 0:02:15]} Bg7 {[%emt 0:02:03]} 27. Re3 {[%emt 0:08:15]} Na4 {[%emt 0:01:56]} 28. Nc4 {[%emt 0:06:17]} Nxc3 {[%emt 0:01:05]} 29. bxc3 {[%emt 0:00:01]} dxe5 {[%emt 0:00:36]} 30. Nxe5 {[%emt 0:00:06]} Bf5 {[%emt 0:01:22]} 31. Nc6 {[%emt 0:08:08]} Rbc8 {[%emt 0:04:38]} 32. Rxa6 {[%emt 0:04:02]} Kh7 {[%emt 0:03:42]} 33. Ra7 {[%emt 0:01:39]} Ra8 {[%emt 0:02:12]} 34. d6 {[%emt 0:03:22]} Rxa7 {[%emt 0:02:41]} 35. Nxa7 {[%emt 0:00:11]} Rd8 {[%emt 0:00:21]} 36. Qd5 {[%emt 0:01:06]} Qxf4 {[%emt 0:00:48]} 37. Rf3 {[%emt 0:00:10]} Qc1+ {[%emt 0:00:08]} 38. Rf1 {[%emt 0:00:01]} Qe3+ {[%emt 0:00:05]} 39. Kh1 {[%emt 0:00:23]} Be6 {[%emt 0:01:02]} 40. Qe4+ {[%emt 0:00:57]} Qxe4 {[%emt 0:00:09]} 41. Bxe4+ {[%emt 0:00:01]} Kg8 {[%emt 0:01:15]} 42. Nb5 {[%emt 0:00:30]} 1/2-1/2

[Event "Hungarian Youth-ch I 2024"]
[Site "Szolnok"]
[Date "2024.04.05"]
[Round "8.7"]
[White "Turcsanyi, Vince Gergo"]
[Black "Foldes, Marton Gabor"]
[Result "0-1"]
[ECO "A35"]
[WhiteElo "2247"]
[BlackElo "2162"]
[Annotator "RC"]
[PlyCount "68"]
[EventDate "2024.03.31"]
[EventType "swiss"]
[EventCountry "HUN"]
[SourceTitle "playchess.com"]
[Source "ChessBase"]
[SourceQuality "1"]
[TimeControl "5400+30"]

1. Nf3 {[%emt 0:00:10]} Nf6 {[%emt 0:01:25]} 2. c4 {[%emt 0:00:07]} c5 {[%emt 0:00:49]} 3. Nc3 {[%emt 0:00:11]} Nc6 {[%emt 0:00:25]} 4. e3 {[%emt 0:00:33]} e5 {[%emt 0:00:05]} 5. d4 {[%emt 0:00:10]} cxd4 {[%emt 0:00:11]} 6. exd4 {[%emt 0:00:09]} e4 {[%emt 0:00:07]} 7. Ne5 {[%emt 0:00:07]} Bb4 {[%emt 0:00:05]} 8. Be2 {[%emt 0:00:30]} Qa5 {[%emt 0:00:09]} 9. Nxc6 {[%emt 0:00:12]} dxc6 {[%emt 0:00:03]} 10. Bd2 {[%emt 0:00:14]} O-O {[%emt 0:00:35]} 11. O-O {[%emt 0:00:05]} Re8 {[%emt 0:00:29]} 12. a3 {[%emt 0:00:06]} Bxc3 {[%emt 0:00:08]} 13. bxc3 {[%emt 0:00:06]} Qf5 {[%emt 0:15:39]} 14. h3 {[%emt 0:11:56]} Qg6 {[%emt 0:13:00]} 15. Kh1 {[%emt 0:00:54]} h5 {[%emt 0:09:48]} 16. a4 {[%emt 0:06:53]} h4 {[%emt 0:08:26]} 17. a5 {[%emt 0:03:14]} Be6 {[%emt 0:08:15]} 18. Qa4 {[%emt 0:08:57]} Rac8 {[%emt 0:08:26]} 19. Qb4 {[%emt 0:05:08]} c5 {[%emt 0:13:18]} 20. Qxb7 {[%emt 0:09:29]} Rb8 {[%emt 0:01:21]} 21. Qc6 {[%emt 0:20:36]} Rb2 {[%emt 0:00:26]} 22. Rad1 {[%emt 0:02:40]} Rc8 {[%emt 0:01:50]} 23. Qa6 {[%emt 0:04:45]} e3 {[%emt 0:09:23]} 24. d5 {[%emt 0:02:29]} Bd7 {[%emt 0:01:21]} 25. fxe3 {[%emt 0:10:32]} Ne4 {[%emt 0:00:07]} 26. Qxa7 Ng3+ {[%emt 0:04:23]} 27. Kh2 {[%emt 0:04:04]} Qd6 {[%emt 0:00:12]} 28. Rf3 {[%emt 0:06:18]} Nxe2+ {[%emt 0:00:05]} 29. Kh1 {[%emt 0:00:03]} Rcb8 {[%emt 0:01:24]} 30. e4 {[%emt 0:01:54]} Rxd2 {[%emt 0:00:38]} 31. Re1 {[%emt 0:01:05]} Ng3+ {[%emt 0:00:14]} 32. Kg1 {[%emt 0:00:30]} Rbb2 {[%emt 0:00:16]} 33. Qa8+ {[%emt 0:01:01]} Kh7 {[%emt 0:00:07]} 34. Rxg3 {[%emt 0:00:03]} Qxg3 {[%emt 0:00:08]} 0-1

[Event "Hungarian Youth-ch I 2024"]
[Site "Szolnok"]
[Date "2024.04.05"]
[Round "8.8"]
[White "Szegedy, Matyas"]
[Black "Apro, Barnabas"]
[Result "1-0"]
[ECO "B52"]
[WhiteElo "2177"]
[BlackElo "2026"]
[Annotator "RC"]
[PlyCount "84"]
[EventDate "2024.03.31"]
[EventType "swiss"]
[EventCountry "HUN"]
[SourceTitle "playchess.com"]
[Source "ChessBase"]
[SourceQuality "1"]
[TimeControl "5400+30"]

1. e4 {[%emt 0:00:14]} c5 {[%emt 0:00:19]} 2. Nf3 {[%emt 0:00:18]} d6 {[%emt 0:00:28]} 3. Bb5+ {[%emt 0:00:29]} Bd7 {[%emt 0:00:18]} 4. Bxd7+ {[%emt 0:00:11]} Qxd7 {[%emt 0:00:06]} 5. O-O {[%emt 0:00:11]} Nc6 {[%emt 0:00:58]} 6. c4 {[%emt 0:01:22]} Nf6 {[%emt 0:01:03]} 7. Nc3 {[%emt 0:00:09]} g6 {[%emt 0:01:18]} 8. d3 {[%emt 0:05:52]} Bg7 {[%emt 0:01:49]} 9. Ne1 {[%emt 0:02:52]} a6 {[%emt 0:05:48]} 10. Nc2 {[%emt 0:01:49]} O-O {[%emt 0:05:06]} 11. a4 {[%emt 0:19:56]} Qd8 {[%emt 0:06:00]} 12. f4 {[%emt 0:00:59]} Nd7 {[%emt 0:01:05]} 13. Kh1 {[%emt 0:01:20]} Nd4 {[%emt 0:03:22]} 14. Ne3 {[%emt 0:02:08]} f5 {[%emt 0:06:21]} 15. Bd2 {[%emt 0:08:57]} e6 {[%emt 0:06:15]} 16. g4 {[%emt 0:09:05]} b5 {[%emt 0:09:54]} 17. cxb5 {[%emt 0:07:44]} axb5 {[%emt 0:00:27]} 18. Nxb5 {[%emt 0:00:40]} Nxb5 {[%emt 0:02:02]} 19. axb5 {[%emt 0:01:58]} Rxa1 {[%emt 0:04:58]} 20. Qxa1 {[%emt 0:00:17]} Qa8 {[%emt 0:00:36]} 21. Qxa8 {[%emt 0:02:38]} Rxa8 {[%emt 0:00:04]} 22. gxf5 {[%emt 0:00:13]} exf5 {[%emt 0:01:00]} 23. exf5 {[%emt 0:03:25]} Rb8 {[%emt 0:02:31]} 24. fxg6 {[%emt 0:01:07]} hxg6 {[%emt 0:00:07]} 25. Bc3 {[%emt 0:09:05]} Rxb5 {[%emt 0:03:21]} 26. Kg2 {[%emt 0:02:42]} Nb6 {[%emt 0:06:19]} 27. Ra1 {[%emt 0:04:41]} Bd4 {[%emt 0:09:13]} 28. Kf3 {[%emt 0:08:06]} Bxe3 {[%emt 0:08:23]} 29. Kxe3 {[%emt 0:00:05]} d5 {[%emt 0:00:06]} 30. d4 {[%emt 0:01:42]} Nc4+ {[%emt 0:00:09]} 31. Kd3 {[%emt 0:01:14]} cxd4 {[%emt 0:07:14]} 32. Kxd4 {[%emt 0:00:39]} Kf7 {[%emt 0:02:12]} 33. b4 {[%emt 0:00:16]} Kf6 {[%emt 0:00:34]} 34. Ra8 {[%emt 0:01:32]} Kf5 {[%emt 0:02:13]} 35. Rf8+ {[%emt 0:00:08]} Kg4 {[%emt 0:01:25]} 36. Rf6 {[%emt 0:00:39]} g5 {[%emt 0:00:10]} 37. fxg5 {[%emt 0:00:25]} Kxg5 {[%emt 0:00:06]} 38. Rc6 {[%emt 0:00:18]} Na3 {[%emt 0:01:53]} 39. Rc5 {[%emt 0:01:19]} Nc2+ {[%emt 0:00:26]} 40. Ke5 {[%emt 0:00:06]} Rb8 {[%emt 0:01:07]} 41. Bd2+ {[%emt 0:00:17]} Kg6 {[%emt 0:00:49]} 42. Rxc2 {[%emt 0:00:06]} Ra8 1-0

[Event "Hungarian Youth-ch I 2024"]
[Site "Szolnok"]
[Date "2024.04.05"]
[Round "8.9"]
[White "Panda, Barnabas"]
[Black "Bodrogi, Bendeguz"]
[Result "0-1"]
[ECO "A13"]
[WhiteElo "2066"]
[BlackElo "2316"]
[Annotator "RC"]
[PlyCount "74"]
[EventDate "2024.03.31"]
[EventType "swiss"]
[EventCountry "HUN"]
[SourceTitle "playchess.com"]
[Source "ChessBase"]
[SourceQuality "1"]
[TimeControl "5400+30"]

1. c4 {[%emt 0:00:05]} e6 {[%emt 0:00:31]} 2. g3 {[%emt 0:00:41]} d5 {[%emt 0:00:18]} 3. Nf3 {[%emt 0:00:39]} d4 {[%emt 0:00:23]} 4. Bg2 {[%emt 0:00:28]} Nc6 {[%emt 0:00:08]} 5. d3 {[%emt 0:00:20]} Bb4+ {[%emt 0:01:53]} 6. Nbd2 {[%emt 0:05:46]} a5 {[%emt 0:01:14]} 7. O-O {[%emt 0:01:40]} Nf6 {[%emt 0:00:34]} 8. a3 {[%emt 0:11:13]} Be7 {[%emt 0:00:41]} 9. b3 {[%emt 0:02:57]} O-O {[%emt 0:03:22]} 10. Bb2 {[%emt 0:00:52]} e5 {[%emt 0:02:49]} 11. Qc2 {[%emt 0:03:55]} Re8 {[%emt 0:12:05]} 12. Rfe1 {[%emt 0:03:26]} Bf5 {[%emt 0:13:03]} 13. Rad1 {[%emt 0:09:24]} Bc5 {[%emt 0:03:16]} 14. Ng5 {[%emt 0:05:22]} Qd7 {[%emt 0:05:57]} 15. Nde4 {[%emt 0:06:03]} Nxe4 {[%emt 0:01:14]} 16. Nxe4 {[%emt 0:00:33]} Bf8 {[%emt 0:00:16]} 17. Qc1 {[%emt 0:10:02]} Rad8 {[%emt 0:07:05]} 18. Qa1 {[%emt 0:10:10]} Bg6 {[%emt 0:03:00]} 19. e3 {[%emt 0:04:20]} Bh5 {[%emt 0:04:03]} 20. Rd2 {[%emt 0:02:00]} h6 {[%emt 0:04:07]} 21. Rc2 {[%emt 0:09:30]} dxe3 {[%emt 0:16:01]} 22. Rxe3 {[%emt 0:01:09]} Nd4 {[%emt 0:01:09]} 23. Bxd4 {[%emt 0:01:04]} exd4 {[%emt 0:03:35]} 24. Re1 {[%emt 0:00:08]} Qe7 {[%emt 0:01:40]} 25. Rb1 {[%emt 0:04:33]} f5 {[%emt 0:05:34]} 26. Nd2 {[%emt 0:00:16]} Qxa3 {[%emt 0:06:10]} 27. Qxa3 {[%emt 0:03:24]} Bxa3 {[%emt 0:00:02]} 28. Bxb7 {[%emt 0:00:11]} Be2 {[%emt 0:00:51]} 29. Ra1 {[%emt 0:00:51]} Bxd3 {[%emt 0:00:22]} 30. Rca2 {[%emt 0:00:12]} Bb4 {[%emt 0:00:06]} 31. Bd5+ {[%emt 0:01:17]} Kh7 {[%emt 0:00:34]} 32. Nf3 {[%emt 0:00:43]} c5 {[%emt 0:01:50]} 33. Rxa5 {[%emt 0:01:35]} Bxa5 {[%emt 0:00:05]} 34. Rxa5 {[%emt 0:00:05]} Be4 {[%emt 0:00:32]} 35. Rxc5 {[%emt 0:00:44]} Rxd5 {[%emt 0:00:11]} 36. cxd5 {[%emt 0:00:50]} Bxf3 {[%emt 0:00:06]} 37. Rc1 {[%emt 0:00:05]} d3 {[%emt 0:00:04]} 0-1

[Event "Hungarian Youth-ch I 2024"]
[Site "Szolnok"]
[Date "2024.04.05"]
[Round "8.10"]
[White "Gergely, Daniel"]
[Black "Gyorfi, Adam"]
[Result "1-0"]
[ECO "E32"]
[WhiteElo "2230"]
[BlackElo "2042"]
[Annotator "RC"]
[PlyCount "31"]
[EventDate "2024.03.31"]
[EventType "swiss"]
[EventCountry "HUN"]
[SourceTitle "playchess.com"]
[Source "ChessBase"]
[SourceQuality "1"]
[TimeControl "5400+30"]

1. d4 {[%emt 0:00:12]} Nf6 {[%emt 0:00:46]} 2. c4 {[%emt 0:00:29]} e6 {[%emt 0:00:10]} 3. Nc3 {[%emt 0:00:06]} Bb4 {[%emt 0:00:17]} 4. Qc2 {[%emt 0:00:26]} O-O {[%emt 0:00:23]} 5. e4 {[%emt 0:00:08]} d5 {[%emt 0:01:39]} 6. e5 {[%emt 0:00:20]} Ne4 {[%emt 0:02:09]} 7. Bd3 {[%emt 0:00:27]} c5 {[%emt 0:08:13]} 8. Nf3 {[%emt 0:00:26]} Nc6 {[%emt 0:06:11]} 9. O-O {[%emt 0:18:31]} f5 {[%emt 0:10:12]} 10. cxd5 {[%emt 0:04:56]} exd5 {[%emt 0:03:33]} 11. Nxd5 {[%emt 0:02:46]} cxd4 {[%emt 0:08:40]} 12. Nxb4 {[%emt 0:06:18]} Nxb4 {[%emt 0:01:09]} 13. Qb3+ {[%emt 0:00:06]} Nd5 {[%emt 0:07:04]} 14. Bc4 {[%emt 0:00:25]} Be6 {[%emt 0:01:53]} 15. Nxd4 {[%emt 0:00:42]} Bf7 {[%emt 0:04:50]} 16. e6 {[%emt 0:01:01]} 1-0

[Event "Hungarian Youth-ch I 2024"]
[Site "Szolnok"]
[Date "2024.04.05"]
[Round "8.11"]
[White "Horvath, Andras"]
[Black "Feher, Botond"]
[Result "1/2-1/2"]
[ECO "B35"]
[WhiteElo "2260"]
[BlackElo "2018"]
[Annotator "RC"]
[PlyCount "86"]
[EventDate "2024.03.31"]
[EventType "swiss"]
[EventCountry "HUN"]
[SourceTitle "playchess.com"]
[Source "ChessBase"]
[SourceQuality "1"]
[TimeControl "5400+30"]

1. e4 {[%emt 0:00:04]} c5 {[%emt 0:00:05]} 2. Nf3 {[%emt 0:00:06]} Nc6 {[%emt 0:00:05]} 3. d4 {[%emt 0:00:06]} cxd4 {[%emt 0:00:04]} 4. Nxd4 {[%emt 0:00:09]} g6 {[%emt 0:00:31]} 5. Be3 {[%emt 0:00:13]} Nf6 {[%emt 0:01:38]} 6. Nc3 {[%emt 0:01:18]} Bg7 {[%emt 0:00:15]} 7. Bc4 {[%emt 0:08:38]} O-O {[%emt 0:00:41]} 8. Bb3 {[%emt 0:03:20]} Re8 {[%emt 0:00:59]} 9. f3 {[%emt 0:01:45]} e6 {[%emt 0:00:41]} 10. O-O {[%emt 0:04:18]} a6 {[%emt 0:13:54]} 11. Qd2 {[%emt 0:13:01]} Qc7 {[%emt 0:07:22]} 12. Rad1 {[%emt 0:06:25]} Na5 {[%emt 0:06:18]} 13. Kh1 {[%emt 0:06:30]} Nxb3 {[%emt 0:01:49]} 14. Nxb3 {[%emt 0:01:37]} b5 {[%emt 0:01:12]} 15. Bf4 {[%emt 0:04:19]} e5 {[%emt 0:27:33]} 16. Be3 {[%emt 0:03:43]} Bb7 {[%emt 0:00:24]} 17. Qf2 {[%emt 0:05:53]} d6 {[%emt 0:05:38]} 18. Bb6 {[%emt 0:13:09]} Qe7 {[%emt 0:01:00]} 19. Na5 {[%emt 0:00:32]} Bc8 {[%emt 0:05:19]} 20. Nc6 {[%emt 0:00:40]} Qd7 {[%emt 0:00:09]} 21. Nb4 {[%emt 0:00:27]} Bb7 {[%emt 0:00:22]} 22. Nbd5 {[%emt 0:01:37]} Rac8 {[%emt 0:01:39]} 23. Nxf6+ {[%emt 0:07:36]} Bxf6 {[%emt 0:00:09]} 24. Nd5 {[%emt 0:00:31]} Bg7 {[%emt 0:02:17]} 25. Be3 {[%emt 0:01:13]} Qe6 {[%emt 0:02:57]} 26. Rd2 {[%emt 0:05:20]} f5 {[%emt 0:00:29]} 27. Rfd1 {[%emt 0:00:54]} Bxd5 {[%emt 0:02:35]} 28. Rxd5 {[%emt 0:00:28]} Bf8 {[%emt 0:00:29]} 29. Bb6 {[%emt 0:01:50]} Rc4 {[%emt 0:01:47]} 30. Qe2 {[%emt 0:02:10]} Be7 {[%emt 0:00:11]} 31. c3 {[%emt 0:00:31]} Rf8 {[%emt 0:00:23]} 32. exf5 {[%emt 0:02:14]} gxf5 {[%emt 0:00:24]} 33. Ba5 {[%emt 0:01:40]} Rh4 {[%emt 0:01:54]} 34. Bb4 {[%emt 0:00:44]} Rf6 {[%emt 0:01:05]} 35. Bxd6 {[%emt 0:00:34]} Bxd6 {[%emt 0:14:10]} 36. Rxd6 {[%emt 0:00:02]} Qxd6 {[%emt 0:00:18]} 37. Rxd6 {[%emt 0:00:02]} Rxd6 {[%emt 0:00:01]} 38. g3 {[%emt 0:00:36]} Rhh6 {[%emt 0:00:56]} 39. Qxe5 {[%emt 0:03:13]} Rd1+ {[%emt 0:00:10]} 40. Kg2 {[%emt 0:00:12]} Rd2+ {[%emt 0:00:06]} 41. Kg1 {[%emt 0:01:03]} Rd1+ {[%emt 0:00:16]} 42. Kg2 {[%emt 0:00:12]} Rd2+ {[%emt 0:00:29]} 43. Kg1 {[%emt 0:00:13]} Rd1+ {[%emt 0:00:15]} 1/2-1/2

[Event "Hungarian Youth-ch I 2024"]
[Site "Szolnok"]
[Date "2024.04.05"]
[Round "8.12"]
[White "Toth, Rafael"]
[Black "Lehocz, Jozsef Jr."]
[Result "0-1"]
[ECO "C00"]
[WhiteElo "1843"]
[BlackElo "2143"]
[Annotator "RC"]
[PlyCount "78"]
[EventDate "2024.03.31"]
[EventType "swiss"]
[EventCountry "HUN"]
[SourceTitle "playchess.com"]
[Source "ChessBase"]
[SourceQuality "1"]
[TimeControl "5400+30"]

1. e4 {[%emt 0:00:03]} e6 {[%emt 0:00:24]} 2. d4 {[%emt 0:00:07]} b6 {[%emt 0:00:04]} 3. Nf3 {[%emt 0:00:18]} Bb7 {[%emt 0:00:05]} 4. Bd3 {[%emt 0:00:07]} c5 {[%emt 0:00:22]} 5. Qe2 {[%emt 0:00:25]} cxd4 {[%emt 0:04:19]} 6. Nxd4 {[%emt 0:00:10]} d6 {[%emt 0:02:40]} 7. O-O {[%emt 0:03:15]} Nf6 {[%emt 0:07:12]} 8. c4 {[%emt 0:03:40]} Be7 {[%emt 0:06:03]} 9. Nc3 {[%emt 0:01:26]} a6 {[%emt 0:05:36]} 10. b3 {[%emt 0:04:40]} Qc7 {[%emt 0:02:24]} 11. Bb2 {[%emt 0:03:12]} O-O {[%emt 0:02:16]} 12. Rae1 {[%emt 0:05:32]} Nbd7 {[%emt 0:00:59]} 13. f4 {[%emt 0:08:11]} Rad8 {[%emt 0:05:27]} 14. Kh1 {[%emt 0:04:44]} g6 {[%emt 0:04:24]} 15. f5 {[%emt 0:11:46]} e5 {[%emt 0:04:29]} 16. Nc2 {[%emt 0:06:33]} Nc5 {[%emt 0:04:12]} 17. h3 {[%emt 0:11:55]} Nh5 {[%emt 0:04:38]} 18. Kh2 {[%emt 0:03:38]} Bh4 {[%emt 0:02:48]} 19. Rd1 {[%emt 0:04:00]} Ng3 {[%emt 0:04:17]} 20. Qe3 {[%emt 0:02:32]} Nxd3 {[%emt 0:06:05]} 21. Qxd3 {[%emt 0:00:59]} Nxf1+ {[%emt 0:00:11]} 22. Rxf1 {[%emt 0:00:07]} b5 {[%emt 0:07:26]} 23. Ne3 {[%emt 0:04:13]} bxc4 {[%emt 0:00:52]} 24. bxc4 {[%emt 0:00:29]} Rc8 {[%emt 0:05:00]} 25. Ba3 {[%emt 0:04:58]} Bg5 {[%emt 0:01:47]} 26. Bxd6 {[%emt 0:02:00]} Rfd8 {[%emt 0:00:20]} 27. Rd1 {[%emt 0:01:00]} Rxd6 {[%emt 0:00:37]} 28. Qxd6 {[%emt 0:01:14]} Qxd6 {[%emt 0:01:28]} 29. Rxd6 {[%emt 0:00:06]} Bxe3 {[%emt 0:00:03]} 30. Nd5 {[%emt 0:00:18]} Bxd5 {[%emt 0:01:07]} 31. cxd5 {[%emt 0:00:08]} gxf5 {[%emt 0:03:00]} 32. exf5 {[%emt 0:00:14]} Bf4+ {[%emt 0:01:16]} 33. g3 {[%emt 0:00:31]} Rc2+ {[%emt 0:00:07]} 34. Kg1 {[%emt 0:01:02]} Bxg3 {[%emt 0:00:23]} 35. Rxa6 {[%emt 0:00:14]} h5 {[%emt 0:04:49]} 36. a4 {[%emt 0:01:39]} Kg7 {[%emt 0:04:00]} 37. Ra8 {[%emt 0:02:05]} Rd2 {[%emt 0:01:57]} 38. Rd8 {[%emt 0:00:28]} Bh4 {[%emt 0:01:04]} 39. Rd7 {[%emt 0:00:23]} e4 {[%emt 0:00:29]} 0-1